Cogmind - Beta 14 @@@ ROGUE MODE // 2024.12.06 @ 18:37:23 Player: droogie Result: Destroyed by 7K-T4V(R) with Subdweller Machine Gun Performance ------------- Evolutions (0) 0 Regions Visited (3) 600 Robots Destroyed (2) 10 Value Destroyed (81) 81 Prototype IDs (2) 40 Alien Tech Used (0) 0 Bonus (0) 0 TOTAL SCORE: 731 Bonus ------- None Cogmind --------- Core Integrity 0/250 Matter 256/300 Energy 100/100 System Corruption 0% Temperature Cool (6) Movement Core (200) Ox3 Location -10/Subcaves Parts ------- > --- POWER (1) -------- (None) > --- PROPULSION (2) --- (None) > --- UTILITY (2) ------ Small Storage Unit Experimental Sensor Array > --- WEAPON (2) ------- Light Assault Rifle Improved Assault Rifle > --- INVENTORY (8) ---- Improved Aluminum Leg Sensor Array Heavy EM Pulse Gun Peak State ------------ > --- POWER ------------ Ion Engine > --- PROPULSION ------- Improved Aluminum Leg Improved Aluminum Leg > --- UTILITY ---------- Small Storage Unit Experimental Sensor Array > --- WEAPON ----------- Light Assault Rifle Improved Assault Rifle > --- INVENTORY -------- Improved Aluminum Leg Sensor Array Heavy EM Pulse Gun [Rating: 19] Favorites ----------- Power Ion Engine Engine Ion Engine Propulsion Improved Aluminum Leg Leg Improved Aluminum Leg Utility Small Storage Unit Device Experimental Sensor Array Storage Small Storage Unit Weapon Small Laser Energy Gun Small Laser Ballistic Gun Assault Rifle Slashing Weapon Mining Claw Build | -11 -10 -10 -10 ------- Run | Yrd Mat Min Sub Slots Evolved . | . . . . Power . | . . . . Propulsion . | . . . . Utility . | . . . . Weapon . | . . . . Parts Attached 23 | 7 10 2 4 Power 3 | 2 . . 1 Engine 3 | 2 . . 1 Core . | . . . . Reactor . | . . . . Propulsion 5 | 2 2 . 1 Treads . | . . . . Leg 5 | 2 2 . 1 Wheel . | . . . . Hover . | . . . . Flight . | . . . . Utility 5 | 1 3 1 . Device 3 | . 2 1 . Storage 2 | 1 1 . . Processor . | . . . . Hackware . | . . . . Protection . | . . . . Artifact . | . . . . Weapon 10 | 2 5 1 2 Energy Gun 2 | 1 1 . . Energy Cannon . | . . . . Ballistic Gun 6 | 1 2 1 2 Ballistic Cannon . | . . . . Launcher . | . . . . Special Weapon . | . . . . Impact Weapon . | . . . . Slashing Weapon 2 | . 2 . . Piercing Weapon . | . . . . Special Melee Weapon . | . . . . Unidentified Prototypes 2 | . . 1 1 Parts Lost 7 | . . . 7 Power 2 | . . . 2 Propulsion 3 | . . . 3 Utility . | . . . . Weapon 2 | . . . 2 Highest Loss Streak 7 | . . . 7 To Critical Strikes 1 | . . . 1 Average Slot Usage (%) 95 | . 88 100 97 Engine 14 | . 14 14 14 Leg 27 | . 28 28 25 Device 11 | . 4 14 14 Storage 14 | . 14 14 14 Energy Gun 12 | . 11 14 12 Ballistic Gun 13 | . 10 14 14 Slashing Weapon 1 | . 4 . . Peak Build Rating 19 | 6 11 18 19 Average Rating 14 | 4 7 16 17 On Entrance 8 | . 6 10 18 Naked Turns . | . . . . Heaviest Build 92 | 12 92 14 15 Greatest Support 32 | 20 32 26 26 Greatest Overweight (x) 4 | 1 4 . 4 Average Overweight (x) . | . . . . Largest Inventory Capacity 25 | 8 25 8 8 Average Capacity 8 | 7 8 8 8 Most Carried 8 | 4 8 8 8 Average Carried 7 | 2 6 7 7 Final Capacity 8 | 8 8 8 8 Final Carried 8 | 4 8 8 3 Class Distribution -------------------- 100% | Mutant Dominant Class ---------------- Mutant | -10/Materials Mutant | -10/Mines Mutant | -10/Subcaves Resources | -11 -10 -10 -10 ----------- Run | Yrd Mat Min Sub Matter Collected 419 | 210 92 86 31 Remotely . | . . . . Salvage Created 92 | . 92 . . Parts 4 | . 4 . . Haulers Intercepted . | . . . . Recyclers Shooed . | . . . . Parts Field Recycled . | . . . . Retrieved Matter . | . . . . Parts Self-Destructed 9 | . . . 9 Prevented . | . . . . Kills | -11 -10 -10 -10 ------- Run | Yrd Mat Min Sub Combat Hostiles Destroyed 2 | . 2 . . Guns 2 | . 2 . . Classes Destroyed 1 | . 1 . . Grunt 2 | . 2 . . Best Kill Streak 2 | . 2 . . Combat Bots Only 2 | . 2 . . Max Kills in Single Turn 1 | . 1 . . Gunslinging . | . . . . Exploded . | . . . . Melee . | . . . . Uniques/NPCs Destroyed . | . . . . Combat | -11 -10 -10 -10 -------- Run | Yrd Mat Min Sub Hostile Shots Fired 69 | . 8 . 61 Missed 26 | . 2 . 24 Damage Taken 1015 | . 82 . 933 Core 265 | . 26 . 239 Absorbed by Shields . | . . . . Core Remaining (%) 100 | 100 . . . Volleys Fired 21 | . 8 . 13 Largest 2 | . 2 . 2 Hottest 60 | . 60 . 60 Shots Fired 42 | . 16 . 26 Gun 42 | . 16 . 26 Cannon . | . . . . Launcher . | . . . . Special . | . . . . Kinetic 27 | . 8 . 19 Thermal 15 | . 8 . 7 Explosive . | . . . . Electromagnetic . | . . . . Robot Hit Streak 13 | . 5 . 13 Robot Miss Streak 2 | . 1 . 2 Penetration Max . | . . . . Secondary Targets . | . . . . Shots Hit Robots 32 | . 11 . 21 Core Hits 7 | . 5 . 2 Critical Kills . | . . . . Critical Parts Destroyed . | . . . . Critical Strikes . | . . . . Melee Attacks 5 | . 5 . . Impact . | . . . . Slashing 5 | . 5 . . Piercing . | . . . . Sneak Attacks . | . . . . Combat Hostiles . | . . . . Follow-up Attacks . | . . . . Damage Inflicted 342 | . 112 . 230 Guns 342 | . 112 . 230 Cannons . | . . . . Explosions . | . . . . Melee . | . . . . Ramming . | . . . . Kinetic 199 | . 24 . 175 Thermal 143 | . 88 . 55 Explosive . | . . . . Electromagnetic . | . . . . Impact . | . . . . Slashing . | . . . . Piercing . | . . . . Highest Corruption . | . . . . Average Corruption . | . . . . Corruption Purged . | . . . . Corruption Blocked . | . . . . Overload Shots . | . . . . Overflow Damage . | . . . . Projectiles . | . . . . Explosions . | . . . . Melee . | . . . . Knockbacks . | . . . . Impact . | . . . . Kinetic . | . . . . Secondary . | . . . . Self-Inflicted Damage . | . . . . Shots . | . . . . Rammed . | . . . . Targets Rammed . | . . . . Kicked . | . . . . Crushed . | . . . . Highest Temperature 103 | . 103 . . Average Temperature 63 | . 63 . . Received Heat Transfer 219 | . 69 . 150 Siege Activations . | . . . . Robots Corrupted . | . . . . Combat Hostiles . | . . . . Parts Fried . | . . . . Impact Corruptions . | . . . . Robots Melted . | . . . . Combat Hostiles . | . . . . Parts Melted 1 | . 1 . . Heat Transferred 325 | . 200 . 125 Parts Sabotaged . | . . . . Parts Stolen . | . . . . Parts Stripped . | . . . . Power Chain Reactions . | . . . . Alert | -11 -10 -10 -10 ------- Run | Yrd Mat Min Sub Peak Influence 68 | . 68 26 . Initial 26 | . . 26 . Average 19 | . 31 15 . Maximum Alert Level . | . . . . Low Security (%) 100 | 100 100 100 . Level 1 . | . . . . Level 2 . | . . . . Level 3 . | . . . . Level 4 . | . . . . Level 5 . | . . . . High Security . | . . . . Max Security . | . . . . Squads Dispatched 2 | . 2 . . Investigation 1 | . 1 . . Extermination . | . . . . Reinforcement 1 | . 1 . . Assault . | . . . . Garrison . | . . . . Intercept . | . . . . Searches Triggered . | . . . . Construction Impeded . | . . . . Haulers Reinforced . | . . . . Active Scanning Responses . | . . . . Cargo Convoy Interrupts . | . . . . Stealth | -11 -10 -10 -10 --------- Run | Yrd Mat Min Sub Distress Signals . | . . . . Communications Jammed . | . . . . Distress Signals . | . . . . Times Spotted 19 | . 3 . 16 Peak Tracking Total 9 | . 2 . 9 Tactical Retreats 1 | . . . 1 Traps | -11 -10 -10 -10 ------- Run | Yrd Mat Min Sub Traps Triggered 2 | . 2 . . Indirectly . | . . . . Trap Hack Attempts . | . . . . Triggered . | . . . . Disarmed . | . . . . Reprogrammed . | . . . . Reused . | . . . . Traps Extracted . | . . . . Installed . | . . . . Triggered . | . . . . Machines | -11 -10 -10 -10 ---------- Run | Yrd Mat Min Sub Machines Disabled . | . . . . Max in Single Turn . | . . . . Machines Repaired . | . . . . Machines Dismantled . | . . . . Machines Sabotaged . | . . . . Overloaded Fab Kills . | . . . . Hacking | -11 -10 -10 -10 --------- Run | Yrd Mat Min Sub Machines Accessed 2 | . 2 . . Terminals 2 | . 2 . . Fabricators . | . . . . Repair Stations . | . . . . Recycling Units . | . . . . Scanalyzers . | . . . . Garrison Access . | . . . . Total Hacks 2 | . 2 . . Successful 2 | . 2 . . Failed . | . . . . Catastrophic . | . . . . Database Lockouts . | . . . . Manual . | . . . . Terminals 2 | . 2 . . Fabricators . | . . . . Repair Stations . | . . . . Recycling Units . | . . . . Scanalyzers . | . . . . Garrison Access . | . . . . Terminal Hacks 2 | . 2 . . Record 2 | . 2 . . Fabricator Hacks . | . . . . Repair Station Hacks . | . . . . Recycling Unit Hacks . | . . . . Scanalyzer . | . . . . Garrison Access Hacks . | . . . . Unauthorized Hacks . | . . . . Terminals . | . . . . Fabricators . | . . . . Repair Stations . | . . . . Recycling Units . | . . . . Scanalyzers . | . . . . Garrison Access . | . . . . Data Cores Recovered . | . . . . Used . | . . . . Hacking Detections . | . . . . Full Trace Events . | . . . . Feedback Events . | . . . . Feedback Blocked . | . . . . Robot Schematics Acquired . | . . . . Robots Built . | . . . . Authchips . | . . . . Time . | . . . . Total Robot Build Rating . | . . . . Part Schematics Acquired . | . . . . Parts Built . | . . . . Authchips . | . . . . Time . | . . . . Total Part Build Rating . | . . . . Parts Repaired . | . . . . Time . | . . . . Parts Recycled . | . . . . Recycled Matter . | . . . . Retrieved Matter . | . . . . Retrieved Components . | . . . . Parts Scanalyzed . | . . . . Part Schematics Acquired . | . . . . Parts Damaged . | . . . . Bothacking | -11 -10 -10 -10 ------------ Run | Yrd Mat Min Sub Used RIF Installer . | . . . . Robots Hacked . | . . . . Non-combat . | . . . . Combat . | . . . . Robot Hacks Applied . | . . . . Relay Couplers Released . | . . . . Fabnet Peak Effective % . | . . . . Robots Rewired . | . . . . Allies Hacked . | . . . . Hacks Repelled . | . . . . Allies | -11 -10 -10 -10 -------- Run | Yrd Mat Min Sub Total Allies 2 | . . 2 . Largest Group 2 | . . 2 . Highest-Rated Group 41 | . . 41 . Highest-Rated Ally 31 | . . 31 . Total Orders . | . . . . Ally Attacks 6 | . . 6 . Total Damage 84 | . . 84 . Kills . | . . . . Allies Corrupted . | . . . . Allies Melted . | . . . . Intel | -11 -10 -10 -10 ------- Run | Yrd Mat Min Sub Robot Analysis Total . | . . . . Derelict Logs Recovered 3 | . . 2 1 Drone Launches . | . . . . Drone Recoveries . | . . . . Exploration | -11 -10 -10 -10 ------------- Run | Yrd Mat Min Sub Turns Passed 1016 | 62 239 352 363 Spaces Moved 649 | 41 142 235 231 Core 10 | 6 . . 4 Treads . | . . . . Legs 639 | 35 142 235 227 Wheels . | . . . . Hover . | . . . . Flight . | . . . . Fastest Speed 50 | 50 120 120 120 Average Speed 121 | 114 121 120 123 Slowest Speed 400 | 120 400 120 250 Overloaded Moves . | . . . . Propulsion Burnouts . | . . . . Robots Hopped . | . . . . Cave-ins Triggered . | . . . . Exploration Rate (%) 22 | 3 22 51 14 Regions Visited 3 Branch Regions 2 Pre-discovered Areas . | . . . . Known Exits Taken 1 | . . 1 . Unknown Exits Taken 2 | 1 1 . . Scrap Searched 2 | . . 2 . Spaces Dug 3 | . 3 . . Terrain Destroyed 3 | . 3 . . Melee 3 | . 3 . . Projectile . | . . . . AOE . | . . . . Terrain Rammed . | . . . . Walls Destroyed . | . . . . Machines Disabled . | . . . . Actions | -11 -10 -10 -10 --------- Run | Yrd Mat Min Sub Total 832 | 52 188 306 286 Wait 106 | 2 3 64 37 Move 646 | 40 141 234 231 Hop . | . . . . Pick Up 14 | 3 9 2 . Fast Attach 12 | 6 5 1 . Attach 6 | . 2 . 4 Detach 2 | . 2 . . Swap 5 | 1 3 1 . Drop 15 | . 10 4 1 Fire 21 | . 8 . 13 Melee 5 | . 5 . . Ram . | . . . . Kick . | . . . . Crush . | . . . . Escape Stasis . | . . . . Rewire . | . . . . Trap . | . . . . Miscellaneous . | . . . . Route ------- -11/Scrapyard -10/Materials -10/Mines (discovered 2 exits: [*Mat] / *Sub) -10/Subcaves History --------- Turn | Location | Event 12 | -11/Scrapyard | Discovered new exit (range 15) 63 | -11/Scrapyard | Entered Materials 257 | -10/Materials | Discovered new exit (range 16) 301 | -10/Materials | Build established: Mutant 302 | -10/Materials | Entered Mines 364 | -10/Mines | Found a damaged Exp. Sensor Array with a note attached 367 | -10/Mines | Found Prototype Device 367 | -10/Mines | Identified Exp. Sensor Array 392 | -10/Mines | Discovered new exit (range 7) 412 | -10/Mines | Identified exit to Subcaves 654 | -10/Mines | Entered Subcaves 819 | -10/Subcaves | Learned Materials stockpile data 954 | -10/Subcaves | Ambushed by swarm of Subdwellers 961 | -10/Subcaves | Ambushed by Subdwellers from Twisted Machinery 976 | -10/Subcaves | Core integrity fell below 50% 992 | -10/Subcaves | Core integrity fell below 20% 1017 | -10/Subcaves | Destroyed by 7K-T4V(R) with Subdweller Machine Gun Last Messages --------------- 00984_ X4-PHB(R) suffers critical hit (Burn). 00984_ X4-PHB(R) destroyed. 00984_ Dropped Faulty Imp. Assault Rifle. 00985_ N1-R1B(R) destroyed. 00988_ DZ-0VF(R) suffers critical hit (Burn). 00988_ 9B-T9G(g) destroyed. 00989_ Subatomizers dissect the Sub. Optics. 00989_ Critical hit (Destroy). 00989_ Imp. Aluminum Leg destroyed. 00990_ DZ-0VF(R) destroyed. 00992_ L6-1DY(R) suffers critical hit (Burn). 00996_ Imp. Aluminum Leg destroyed. 01010_ 7K-T4V(R) affixes Scrap Shield Fragment to Scrap Shield. 01010_ L6-1DY(R) affixes Scrap Shield Fragment to Scrap Shield. 01015_ Subatomizers dissect the Sub. Optics. 01015_ Ion Engine destroyed. 01015_ L6-1DY(R) affixes Scrap Shield Fragment to Scrap Shield. Map ----- +----------------------------------------------------+ | ?????????????????# ##???????????? | | ?????????????????## % ##% % ##????????????? | | ??????????????????## ### ##?????????????? | | ???????????????????######?# #??????????????? | | ?????????????????????????# ### #??????????????? | | ??????????????????????#??# ###" #?? #??????????? | | ?????????????????????## ?###### ##?? ##?????????? | | ????????????????????## #??###* #### ##????????? | | ????????????????????# ### % [ ##???????? | | ????????????????????#% % [=%! #???????? | | ???????????????????## #???????? | | ??????????????????## % % "# #???????? | | ?????????????????## %!"" #???????? | | ?????????????????# %%!"" ##???????? | | ???????????????? ####; !%**] #????????? | | ???????????????????????# &%%!#####?????? | | ???????????????????????# ! !!# ## | | ???????????????????????#; !&%& % | | ???????????????????????## R * | | ???????????????????????#; ;;; ## | | ???????????????????????# # ###?% | | ???????????????????????# R# # ; ###???? "? | | ??????????????????????## #*! ; #??????? ? "???? | | ??????????????????????# " R " #???????????????? | | ??????????????????????#""R;;%"""##???????????????? | | ??????????????????????#""@# %"###????????????????? | | ??????????????????????#""### ##??????????????????? | | ??????????????????????# #?#""#??????????????????? | | ??????????????????????# ?#"##??????????????????? | | ??????????????????????##""?" ???????????????????? | | ???????????????????????#""? ???????????????????? | | ??????????????????????????? ??????????????????? | | ??????????????????????????? # ??????????????????? | | ??????????????????????????# #??????????????????? | | ??????????????????????????# #???????????????????? | | ??????????????????????????? ????????????????????? | | ??????????????????????????# ????????????????????? | | ??????????????????????????? ????????????????????? | | ?????????????????????????????????????????????????? | | ?????????????????????????????????????????????????? | | ?????????????????????????????????????????????????? | | ?????????????????????????????????????????????????? | | ?????????????????????????????????????????????????? | | ?????????????????????????????????????????????????? | | ?????????????????????????????????????????????????? | | ?????????????????????????????????????????????????? | | ?????????????????????????????????????????????????? | | ?????????????????????????????????????????????????? | | ?????????????????????????????????????????????????? | | ?????????????????????????????????????????????????? | +----------------------------------------------------+ Best States ------------- Heat Dissipation 25 Energy Generation 10 Energy Capacity 250 Matter Stores 300 Matter Capacity 300 Sight Range 16 Robot Scan Range 20 Terrain Scan Density 10 Additional Mass Support 6 Evasion (%) 55 Item Schematics ----------------- None Robot Schematics ------------------ None Fabricated ------------ Nothing Alien Tech Used ----------------- None Achievements -------------- None Challenges ------------ None Game ------ Seed ColdStealthKinecellerator Manual? 0 Play Time 00:18:19 Cumulative 5.7 hours Start 2024.12.06 @ 18:22:29 End 2024.12.06 @ 18:37:23 Sessions 1 Manual Loads 0 Difficulty Rogue Special Mode None Game No. 15 Rogue 15 Adventurer 0 Explorer 0 Win Type - Total 0 Types 0/0/0/0/0/0/0/0/0 Lore% 1 Gallery% 10 Achievement% 7 Wizard Run 0 Options --------- Layout 1 ASCII 0 Keyboard 0 Movement Numpad Keybinds 0 Fullscreen 0 Font 28/SmallcapsGlow Map View 50x35 Zoom Use 0% Tactical HUD 1 Map Filters NONE Filters NONE Steam X RUN: 8d15435a-0dcb-4d1a-8c24-5dddd2eae03c